fUST/lending_fUST_20250831
["ID","MTS","AMOUNT","RATE_DAILY","PERIOD"]
[382496161,1756648241539,-480.0,0.00017774,2]
[382496163,1756648241548,-480.0,0.00017774,2]
[382496165,1756648241558,-501.47,0.00017774,2]
[382496167,1756648241567,-480.0,0.00017774,2]
[382496169,1756648241578,-480.0,0.00017774,2]
[382496171,1756648241588,-480.0,0.00017774,2]
[382496173,1756648241598,-607.69,0.00017774,2]
[382496175,1756648241607,-480.0,0.00017774,2]
[382496177,1756648241618,-500.0,0.00017774,2]
[382496179,1756648241628,-480.0,0.00017774,2]
[382496181,1756648241637,-480.0,0.00017774,2]
[382496183,1756648241647,-480.0,0.00017774,2]
[382496185,1756648241656,-480.0,0.00017774,2]
[382496187,1756648241666,-480.0,0.00017774,2]
[382496189,1756648241675,-480.0,0.00017774,2]
[382496191,1756648241685,-482.03,0.00017774,2]
[382496193,1756648241694,-480.0,0.00017774,2]
[382496195,1756648241704,-519.63,0.00017774,2]
[382496197,1756648241713,-265.5352574,0.00017774,2]
[382496199,1756648241722,-759.01,0.00017774,2]
[382496201,1756648241732,-1326.61,0.00017774,2]
[382496203,1756648241743,-480.0,0.00017774,2]
[382496205,1756648241753,-499.35843453,0.00017774,2]
[382496207,1756648241762,-480.0,0.00017774,2]
[382496209,1756648241772,-298.40581978,0.00017774,2]
[382496211,1756648241782,-1516.95,0.00017774,2]
[382496213,1756648241791,-480.0,0.00017774,2]
[382496215,1756648241800,-480.0,0.00017774,2]
[382496217,1756648241810,-1637.92,0.00017774,2]
[382496219,1756648241819,-480.0,0.00017774,2]
[382496221,1756648241829,-480.0,0.00017774,2]
[382496223,1756648241838,-596.0,0.00017774,2]
[382496225,1756648241848,-480.0,0.00017774,2]
[382496227,1756648241857,-480.0,0.00017774,2]
[382496229,1756648241867,-1500.48,0.00017774,2]
[382496231,1756648241877,-480.0,0.00017774,2]
[382496233,1756648241887,-480.0,0.00017774,2]
[382496235,1756648241897,-480.0,0.00017774,2]
[382496237,1756648241907,-480.0,0.00017774,2]
[382496239,1756648241916,-880.53,0.00017774,2]
[382496241,1756648241927,-504.77,0.00017774,2]
[382496244,1756648241938,-1312.88,0.00017774,2]
[382496246,1756648241947,-1411.44,0.00017774,2]
[382496248,1756648241958,-480.0,0.00017774,2]
[382496250,1756648241967,-480.0,0.00017774,2]
[382496252,1756648241976,-480.0,0.00017774,2]
[382496254,1756648241986,-480.0,0.00017774,2]
[382496256,1756648241995,-480.0,0.00017774,2]
[382496257,1756648242004,-621.39,0.00017774,2]
[382496260,1756648242014,-480.0,0.00017774,2]
[382496262,1756648242024,-480.0,0.00017774,2]
[382496264,1756648242034,-480.0,0.00017774,2]
[382496265,1756648242043,-480.0,0.00017774,2]
[382496268,1756648242052,-983.6,0.00017774,2]
[382496270,1756648242062,-672.27,0.00017774,2]
[382496272,1756648242071,-480.0,0.00017774,2]
[382496274,1756648242082,-480.0,0.00017774,2]
[382496276,1756648242092,-480.0,0.00017774,2]
[382496278,1756648242101,-480.0,0.00017774,2]
[382496280,1756648242111,-626.4,0.00017774,2]
[382496282,1756648242122,-480.0,0.00017774,2]
[382496284,1756648242132,-480.0,0.00017774,2]
[382496286,1756648242142,-1030.98,0.00017774,2]
[382496288,1756648242153,-480.0,0.00017774,2]
[382496290,1756648242163,-480.0,0.00017774,2]
[382496292,1756648242172,-511.18,0.00017774,2]
[382496294,1756648242181,-480.0,0.00017774,2]
[382496296,1756648242190,-1250.21,0.00017774,2]
[382496298,1756648242199,-543.00059376,0.00017774,2]
[382496300,1756648242209,-1064.21,0.00017774,2]
[382496302,1756648242219,-480.0,0.00017774,2]
[382496304,1756648242228,-515.09,0.00017774,2]
[382496306,1756648242238,-701.61,0.00017774,2]
[382496308,1756648242247,-480.0,0.00017774,2]
[382496310,1756648242256,-480.0,0.00017774,2]
[382496311,1756648242265,-527.63,0.00017774,2]
[382496313,1756648242275,-738.14,0.00017774,2]
[382496315,1756648242285,-529.67,0.00017774,2]
[382496317,1756648242296,-1510.62,0.00017774,2]
[382496319,1756648242305,-737.88,0.00017774,2]
[382496321,1756648242316,-1028.26,0.00017774,2]
[382496323,1756648242325,-480.0,0.00017774,2]
[382496325,1756648242340,-739.85,0.00017774,2]
[382496327,1756648242349,-480.0,0.00017774,2]
[382496329,1756648242358,-729.71,0.00017774,2]
[382496331,1756648242368,-480.0,0.00017774,2]
[382496333,1756648242379,-480.0,0.00017774,2]
[382496335,1756648242389,-480.0,0.00017774,2]
[382496337,1756648242399,-663.13,0.00017774,2]
[382496339,1756648242408,-480.0,0.00017774,2]
[382496341,1756648242418,-480.0,0.00017774,2]
[382496343,1756648242427,-691.59,0.00017774,2]
[382496345,1756648242436,-480.0,0.00017774,2]
[382496347,1756648242446,-521.75,0.00017774,2]
[382496349,1756648242455,-480.0,0.00017774,2]
[382496351,1756648242464,-480.0,0.00017774,2]
[382496353,1756648242474,-480.0,0.00017774,2]
[382496355,1756648242483,-1546.41,0.00017774,2]
[382496357,1756648242493,-497.24,0.00017774,2]
[382496359,1756648242502,-480.0,0.00017774,2]
[382496361,1756648242511,-590.45,0.00017774,2]
[382496362,1756648242520,-844.74,0.00017774,2]
[382496364,1756648242530,-480.0,0.00017774,2]
[382496366,1756648242540,-480.0,0.00017774,2]
[382496368,1756648242550,-480.0,0.00017774,2]
[382496370,1756648242559,-954.05,0.00017774,2]
[382496372,1756648242569,-480.0,0.00017774,2]
[382496374,1756648242578,-1263.81,0.00017774,2]
[382496376,1756648242588,-756.23,0.00017774,2]
[382496378,1756648242597,-480.0,0.00017774,2]
[382496380,1756648242607,-1171.73,0.00017774,2]
[382496382,1756648242616,-480.0,0.00017774,2]
[382496384,1756648242626,-480.0,0.00017774,2]
[382496386,1756648242635,-480.0,0.00017774,2]
[382496388,1756648242644,-480.0,0.00017774,2]
[382496390,1756648242654,-1234.12,0.00017774,2]
[382496392,1756648242663,-480.0,0.00017774,2]
[382496394,1756648242672,-480.0,0.00017774,2]
[382496396,1756648242681,-480.0,0.00017774,2]
[382496398,1756648242692,-1322.88,0.00017774,2]
[382496400,1756648242701,-1677.83,0.00017774,2]
[382496402,1756648242711,-480.64942555,0.00017774,2]
[382496404,1756648242722,-512.3,0.00017774,2]
[382496406,1756648242731,-480.0,0.00017774,2]
[382496408,1756648242740,-480.0,0.00017774,2]
[382496410,1756648242750,-480.0,0.00017774,2]
[382496412,1756648242759,-716.45,0.00017774,2]
[382496414,1756648242768,-480.0,0.00017774,2]
[382496416,1756648242778,-1575.89,0.00017774,2]
[382496418,1756648242788,-480.0,0.00017774,2]
[382496420,1756648242798,-480.0,0.00017774,2]
[382496422,1756648242807,-982.69,0.00017774,2]
[382496424,1756648242816,-1534.85,0.00017774,2]
[382496426,1756648242826,-480.0,0.00017774,2]
[382496428,1756648242835,-411.61085373,0.00017774,2]
[382496430,1756648242844,-480.0,0.00017774,2]
[382496432,1756648242854,-1355.11,0.00017774,2]
[382496434,1756648242864,-480.0,0.00017774,2]
[382496436,1756648242873,-480.0,0.00017774,2]
[382496437,1756648242882,-480.0,0.00017774,2]
[382496439,1756648242891,-480.0,0.00017774,2]
[382496441,1756648242901,-574.78,0.00017774,2]
[382496443,1756648242911,-480.0,0.00017774,2]
[382496445,1756648242920,-570.86,0.00017774,2]
[382496447,1756648242929,-347.7394083,0.00017774,2]
[382496449,1756648242945,-711.7,0.00017774,2]
[382496451,1756648242955,-1715.15,0.00017774,2]
[382496453,1756648242964,-480.0,0.00017774,2]
[382496455,1756648242974,-911.66,0.00017774,2]
[382496458,1756648242983,-480.0,0.00017774,2]
[382496461,1756648242992,-480.0,0.00017774,2]
[382496464,1756648243001,-651.92,0.00017774,2]
[382496467,1756648243011,-3352.13,0.00017774,2]
[382496470,1756648243020,-480.0,0.00017774,2]
[382496473,1756648243029,-155.7561095,0.00017774,2]
[382496476,1756648243039,-1560.48,0.00017774,2]
[382496479,1756648243048,-1140.7,0.00017774,2]
[382496481,1756648243058,-354.50115344,0.00017774,2]
[382496482,1756648243067,-480.0,0.00017774,2]
[382496485,1756648243077,-480.0,0.00017774,2]
[382496487,1756648243086,-480.0,0.00017774,2]
[382496489,1756648243096,-480.0,0.00017774,2]
[382496492,1756648243105,-480.0,0.00017774,2]
[382496494,1756648243115,-597.07,0.00017774,2]
[382496497,1756648243125,-999.47,0.00017774,2]
[382496500,1756648243134,-827.32,0.00017774,2]
[382496502,1756648243144,-480.0,0.00017774,2]
[382496504,1756648243153,-480.0,0.00017774,2]
[382496507,1756648243162,-480.0,0.00017774,2]
[382496509,1756648243171,-3203.52,0.00017774,2]
[382496511,1756648243181,-1701.75,0.00017774,2]
[382496512,1756648243190,-480.0,0.00017774,2]
[382496514,1756648243199,-542.28,0.00017774,2]
[382496516,1756648243209,-480.0,0.00017774,2]
[382496518,1756648243218,-480.0,0.00017774,2]
[382496520,1756648243228,-480.84,0.00017774,2]
[382496522,1756648243238,-1648.18,0.00017774,2]
[382496524,1756648243247,-974.78,0.00017774,2]
[382496526,1756648243256,-835.03,0.00017774,2]
[382496528,1756648243267,-480.0,0.00017774,2]
[382496530,1756648243276,-480.0,0.00017774,2]
[382496532,1756648243286,-821.92,0.00017774,2]
[382496534,1756648243296,-480.0,0.00017774,2]
[382496536,1756648243305,-420.51214231,0.00017774,2]
[382496538,1756648243315,-776.54,0.00017774,2]
[382496540,1756648243324,-480.0,0.00017774,2]
[382496542,1756648243336,-1122.48,0.00017774,2]
[382496544,1756648243345,-480.0,0.00017774,2]
[382496546,1756648243355,-1159.85,0.00017774,2]
[382496548,1756648243365,-353.68286026,0.00017774,2]
[382496549,1756648243375,-480.0,0.00017774,2]
[382496551,1756648243384,-1777.94,0.00017774,2]
[382496553,1756648243394,-480.0,0.00017774,2]
[382496555,1756648243404,-480.0,0.00017774,2]
[382496557,1756648243415,-1414.55,0.00017774,2]
[382496559,1756648243426,-480.0,0.00017774,2]
[382496561,1756648243435,-768.29,0.00017774,2]
[382496563,1756648243445,-480.0,0.00017774,2]
[382496565,1756648243454,-480.0,0.00017774,2]
[382496567,1756648243463,-814.85,0.00017774,2]
[382496569,1756648243472,-615.12,0.00017774,2]
[382496571,1756648243482,-854.31,0.00017774,2]
[382496573,1756648243491,-1365.61,0.00017774,2]
[382496575,1756648243502,-1644.56,0.00017774,2]
[382496577,1756648243511,-544.33,0.00017774,2]
[382496579,1756648243521,-1102.14,0.00017774,2]
[382496580,1756648243530,-480.0,0.00017774,2]
[382496582,1756648243539,-711.17,0.00017774,2]
[382496584,1756648243550,-5508.12,0.00017774,2]
[382496586,1756648243559,-1178.41,0.00017774,2]
[382496588,1756648243569,-1441.86,0.00017774,2]
[382496590,1756648243579,-480.0,0.00017774,2]
[382496592,1756648243588,-480.0,0.00017774,2]
[382496596,1756648243598,-1062.62,0.00017774,2]
[382496598,1756648243608,-1907.62,0.00017774,2]
[382496600,1756648243617,-480.0,0.00017774,2]
[382496602,1756648243630,-480.0,0.00017774,2]
[382496604,1756648243639,-480.0,0.00017774,2]
[382496606,1756648243649,-3449.22,0.00017774,2]
[382496608,1756648243659,-480.0,0.00017774,2]
[382496610,1756648243668,-533.26,0.00017774,2]
[382496612,1756648243678,-480.0,0.00017774,2]
[382496614,1756648243687,-1144.2,0.00017774,2]
[382496616,1756648243696,-1028.65,0.00017774,2]
[382496618,1756648243708,-2445.3,0.00017774,2]
[382496620,1756648243717,-686.6,0.00017774,2]
[382496621,1756648243727,-9385.18,0.00017774,2]
[382496623,1756648243737,-1033.84,0.00017774,2]
[382496625,1756648243746,-243.52077592,0.00017774,2]
[382496627,1756648243755,-480.0,0.00017774,2]
[382496629,1756648243764,-269.48133979,0.00017774,2]
[382496631,1756648243773,-1465.55,0.00017774,2]
[382496633,1756648243782,-480.0,0.00017774,2]
[382496635,1756648243792,-1130.19,0.00017774,2]
[382496637,1756648243801,-480.0,0.00017774,2]
[382496639,1756648243811,-526.94,0.00017774,2]
[382496640,1756648243820,-480.0,0.00017774,2]
[382496642,1756648243829,-480.0,0.00017774,2]
[382496644,1756648243839,-805.99,0.00017774,2]
[382496646,1756648243848,-480.0,0.00017774,2]
[382496648,1756648243858,-480.0,0.00017774,2]
[382496650,1756648243868,-4195.76,0.00017774,2]
[382496652,1756648243879,-622.34,0.00017774,2]
[382496654,1756648243888,-517.86,0.00017774,2]
[382496656,1756648243898,-634.45,0.00017774,2]
[382496658,1756648243907,-480.0,0.00017774,2]
[382496660,1756648243917,-1102.7,0.00017774,2]
[382496662,1756648243926,-2554.45,0.00017774,2]
[382496664,1756648243935,-879.99,0.00017774,2]
[382496665,1756648243944,-686.19,0.00017774,2]
[382496667,1756648243954,-497.52,0.00017774,2]
[382496669,1756648243963,-818.91,0.00017774,2]
[382496671,1756648243972,-1079.18,0.00017774,2]
[382496673,1756648243981,-1915.81,0.00017774,2]
[382496675,1756648243990,-480.0,0.00017774,2]
[382496677,1756648244000,-510.46,0.00017774,2]
[382496679,1756648244010,-480.0,0.00017774,2]
[382496681,1756648244019,-646.85,0.00017774,2]
[382496683,1756648244028,-696.26,0.00017774,2]
[382496684,1756648244038,-1676.23,0.00017774,2]
[382496686,1756648244047,-480.0,0.00017774,2]
[382496688,1756648244056,-1631.59,0.00017774,2]
[382496690,1756648244065,-480.0,0.00017774,2]
[382496692,1756648244075,-501.46,0.00017774,2]
[382496694,1756648244084,-480.0,0.00017774,2]
[382496696,1756648244093,-615.27,0.00017774,2]
[382496698,1756648244102,-932.22,0.00017774,2]
[382496699,1756648244112,-544.64,0.00017774,2]
[382496701,1756648244122,-480.0,0.00017774,2]
[382496703,1756648244132,-151.0,0.00017774,2]
[382496705,1756648244142,-1345.21,0.00017774,2]
[382496707,1756648244151,-151.0,0.00017774,2]
[382496709,1756648244161,-480.0,0.00017774,2]
[382496711,1756648244170,-594.45,0.00017774,2]
[382496713,1756648244180,-1337.19,0.00017774,2]
[382496715,1756648244189,-480.0,0.00017774,2]
[382496717,1756648244198,-1978.07,0.00017774,2]
[382496719,1756648244209,-2159.45,0.00017774,2]
[382496721,1756648244219,-1391.58,0.00017774,2]
[382496723,1756648244228,-1400.49,0.00017774,2]
[382496725,1756648244237,-198.85582042,0.00017774,2]
[382496726,1756648244247,-815.94,0.00017774,2]
[382496728,1756648244256,-151.0,0.00017774,2]
[382496730,1756648244266,-480.0,0.00017774,2]
[382496732,1756648244276,-876.2,0.00017774,2]
[382496734,1756648244285,-151.0,0.00017774,2]
[382496736,1756648244295,-3497.53,0.00017774,2]
[382496739,1756648244306,-7027.02,0.00017774,2]
[382496740,1756648244315,-996.41,0.00017774,2]
[382496742,1756648244324,-480.0,0.00017774,2]
[382496744,1756648244337,-480.0,0.00017774,2]
[382496746,1756648244347,-480.0,0.00017774,2]
[382496748,1756648244356,-151.0,0.00017774,2]
[382496750,1756648244365,-797.47,0.00017774,2]
[382496752,1756648244375,-908.84,0.00017774,2]
[382496754,1756648244385,-1476.02,0.00017774,2]
[382496756,1756648244395,-151.0,0.00017774,2]
[382496758,1756648244404,-151.0,0.00017774,2]
[382496759,1756648244413,-480.0,0.00017774,2]
[382496761,1756648244422,-3020.08,0.00017774,2]
[382496763,1756648244432,-677.86,0.00017774,2]
[382496765,1756648244441,-1153.11,0.00017774,2]
[382496767,1756648244451,-151.0,0.00017774,2]
[382496769,1756648244460,-6707.61,0.00017774,2]
[382496771,1756648244470,-393.189581,0.00017774,2]
[382496773,1756648244479,-480.0,0.00017774,2]
[382496775,1756648244489,-393.189581,0.00017774,2]
[382496777,1756648244498,-480.0,0.00017774,2]
[382496779,1756648244507,-151.83901,0.00017774,2]
[382496781,1756648244517,-393.189581,0.00017774,2]
[382496783,1756648244527,-480.0,0.00017775,2]
[382496785,1756648244536,-480.0,0.00017775,2]
[382496787,1756648244546,-667.48,0.00017775,2]
[382496789,1756648244555,-561.94,0.00017775,2]
[382496791,1756648244565,-480.0,0.00017775,2]
[382496793,1756648244574,-502.97,0.00017775,2]
[382496795,1756648244583,-151.0,0.00017775,2]
[382496796,1756648244593,-151.0,0.00017775,2]
[382496798,1756648244602,-151.0,0.00017775,2]
[382496800,1756648244612,-151.0,0.00017775,2]
[382496802,1756648244621,-500.0,0.00017775,2]
[382496804,1756648244631,-824.91005701,0.00017881,2]
[382496806,1756648244640,-480.0,0.00017893,2]
[382496808,1756648244650,-858.04,0.00017893,2]
[382496810,1756648244659,-774.57,0.00017893,2]
[382496812,1756648244669,-2181.98,0.00017893,2]
[382496814,1756648244680,-480.0,0.00017893,2]
[382496816,1756648244690,-224.34141797,0.00017893,2]
[382496817,1756648244699,-1106.49,0.00017893,2]
[382496819,1756648244709,-1405.3,0.00017893,2]
[382496821,1756648244718,-1461.57,0.00017893,2]
[382496823,1756648244728,-1150.1,0.00017893,2]
[382496825,1756648244737,-695.36,0.00017893,2]
[382496827,1756648244747,-685.42,0.00017893,2]
[382496829,1756648244756,-480.0,0.00017893,2]
[382496831,1756648244765,-655.64,0.00017893,2]
[382496833,1756648244775,-871.72,0.00017893,2]
[382496835,1756648244785,-1086.19,0.00017893,2]
[382496837,1756648244794,-716.56,0.00017893,2]
[382496839,1756648244804,-768.76,0.00017893,2]
[382496841,1756648244813,-1521.57,0.00017893,2]
[382496842,1756648244823,-1474.76,0.00017893,2]
[382496844,1756648244832,-1107.78,0.00017893,2]
[382496846,1756648244842,-594.32,0.00017893,2]
[382496848,1756648244851,-480.0,0.00017893,2]
[382496850,1756648244860,-1378.71,0.00017893,2]
[382496852,1756648244870,-754.17,0.00017893,2]
[382496854,1756648244879,-1730.85,0.00017893,2]
[382496856,1756648244888,-480.0,0.00017893,2]
[382496857,1756648244898,-1383.34,0.00017893,2]
[382496859,1756648244907,-480.0,0.00017893,2]
[382496861,1756648244916,-480.0,0.00017893,2]
[382496863,1756648244926,-177.393,0.000179,2]
[382496865,1756648244935,-151.0,0.000179,2]
[382496867,1756648244945,-151.0,0.000179,2]
[382496869,1756648244954,-480.0,0.00017934,2]
[382496871,1756648244963,-354.0,0.00017965,2]
[382496873,1756648244972,-839.79,0.00018,2]
[382496875,1756648244981,-151.0,0.00018,2]
[382496876,1756648244990,-386.89298841,0.00018,14]
[382496878,1756648244999,-452.01923232,0.00018013,2]
[382496880,1756648245009,-264.72,0.00018046,2]
[382496882,1756648245019,-480.0,0.00018046,2]
[382496884,1756648245030,-480.0,0.00018047,2]
[382496886,1756648245039,-440.13314868,0.00018047,2]
[382496888,1756648245048,-1411.15,0.00018047,2]
[382496890,1756648245057,-480.0,0.00018047,2]
[382496892,1756648245067,-603.37,0.00018047,2]
[382496893,1756648245076,-480.0,0.00018047,2]
[382496895,1756648245085,-588.24,0.00018047,2]
[382496897,1756648245094,-480.0,0.00018047,2]
[382496899,1756648245104,-480.0,0.00018047,2]
[382496901,1756648245113,-363.50489187,0.00018047,2]
[382496903,1756648245294,-480.0,0.00018047,2]
[382496904,1756648245304,-480.0,0.00018047,2]
[382496905,1756648245315,-480.0,0.00018047,2]
[382496906,1756648245324,-974.13,0.00018047,2]
[382496907,1756648245335,-676.51,0.00018047,2]
[382496908,1756648245347,-480.0,0.00018047,2]
[382496909,1756648245357,-480.0,0.00018047,2]
[382496910,1756648245366,-480.0,0.00018047,2]
[382496911,1756648245376,-480.0,0.00018047,2]
[382496912,1756648245386,-480.0,0.00018047,2]
[382496913,1756648245396,-725.48,0.00018047,2]
[382496914,1756648245406,-480.0,0.00018047,2]
[382496915,1756648245416,-480.0,0.00018047,2]
[382496916,1756648245426,-810.4,0.00018047,2]
[382496917,1756648245436,-480.0,0.00018047,2]
[382496918,1756648245445,-480.0,0.00018047,2]
[382496920,1756648245455,-873.75,0.00018047,2]
[382496921,1756648245464,-1082.45,0.00018047,2]
[382496922,1756648245474,-693.75,0.00018047,2]
[382496924,1756648245484,-812.27,0.00018047,2]
[382496926,1756648245496,-518.04,0.00018047,2]
[382496928,1756648245506,-1063.27,0.00018047,2]
[382496930,1756648245516,-914.82,0.00018047,2]
[382496932,1756648245526,-480.0,0.00018047,2]
[382496934,1756648245535,-2081.49,0.00018047,2]
[382496936,1756648245545,-2367.83,0.00018047,2]
[382496938,1756648245555,-480.0,0.00018047,2]
[382496940,1756648245565,-930.11,0.00018047,2]
[382496942,1756648245575,-480.81,0.00018047,2]
[382496943,1756648245584,-480.0,0.00018047,2]
[382496946,1756648245594,-435.60249108,0.00018048,2]
[382496948,1756648245604,-480.0,0.00018048,2]
[382496950,1756648245614,-482.69,0.00018048,2]
[382496952,1756648245623,-480.0,0.00018048,2]
[382496954,1756648245634,-192.47779192,0.00018048,2]
[382496955,1756648245644,-480.0,0.00018048,2]
[382496957,1756648245654,-480.0,0.00018048,2]
[382496959,1756648245664,-480.0,0.00018048,2]
[382496961,1756648245674,-356.36837268,0.00018048,2]
[382496963,1756648245683,-480.0,0.00018048,2]
[382496965,1756648245692,-480.0,0.00018048,2]
[382496967,1756648245701,-480.0,0.00018048,2]
[382496969,1756648245711,-664.77,0.00018048,2]
[382496971,1756648245720,-599.01,0.00018048,2]
[382496973,1756648245729,-480.0,0.00018048,2]
[382496975,1756648245739,-480.0,0.00018048,2]
[382496977,1756648245749,-480.0,0.00018048,2]
[382496979,1756648245759,-1069.13,0.00018048,2]
[382496981,1756648245768,-1305.71,0.00018048,2]
[382496983,1756648245778,-480.0,0.00018048,2]
[382496985,1756648245787,-480.0,0.00018048,2]
[382496987,1756648245797,-480.0,0.00018048,2]
[382496989,1756648245806,-480.0,0.00018048,2]
[382496991,1756648245816,-480.0,0.00018048,2]
[382496993,1756648245826,-501.17,0.00018048,2]
[382496995,1756648245835,-480.0,0.00018048,2]
[382496997,1756648245845,-480.0,0.00018048,2]
[382496999,1756648245854,-480.0,0.00018048,2]
[382497001,1756648245864,-480.0,0.00018048,2]
[382497003,1756648245874,-480.0,0.00018048,2]
[382497005,1756648245884,-1356.92,0.00018048,2]
[382497007,1756648245894,-480.0,0.00018048,2]
[382497009,1756648245903,-480.0,0.00018048,2]
[382497011,1756648245913,-480.0,0.00018048,2]
[382497013,1756648245922,-480.0,0.00018048,2]
[382497015,1756648245932,-480.0,0.00018048,2]
[382497017,1756648245942,-480.0,0.00018048,2]
[382497020,1756648245951,-809.59,0.00018048,2]
[382497022,1756648245961,-480.0,0.00018048,2]
[382497024,1756648245971,-480.0,0.00018048,2]
[382497026,1756648245980,-480.0,0.00018048,2]
[382497028,1756648245989,-678.71,0.00018048,2]
[382497030,1756648245999,-480.0,0.00018048,2]
[382497032,1756648246009,-480.0,0.00018048,2]
[382497034,1756648246019,-500.49,0.00018048,2]
[382497036,1756648246028,-480.0,0.00018048,2]
[382497038,1756648246037,-480.0,0.00018048,2]
[382497040,1756648246047,-565.91,0.00018048,2]
[382497042,1756648246056,-480.0,0.00018048,2]
[382497044,1756648246067,-1024.97,0.00018048,2]
[382497046,1756648246077,-480.0,0.00018048,2]
[382497048,1756648246086,-554.2,0.00018048,2]
[382497050,1756648246095,-480.0,0.00018048,2]
[382497052,1756648246105,-480.0,0.00018048,2]
[382497054,1756648246114,-480.0,0.00018048,2]
[382497056,1756648246124,-728.69,0.00018048,2]
[382497058,1756648246135,-500.75,0.00018048,2]
[382497060,1756648246145,-480.0,0.00018048,2]
[382497062,1756648246154,-480.0,0.00018048,2]
[382497064,1756648246165,-480.45,0.00018048,2]
[382497066,1756648246175,-480.0,0.00018048,2]
[382497068,1756648246185,-808.13,0.00018048,2]
[382497070,1756648246194,-480.0,0.00018048,2]
[382497072,1756648246203,-480.0,0.00018048,2]
[382497074,1756648246213,-480.0,0.00018048,2]
[382497076,1756648246222,-1189.62,0.00018048,2]
[382497078,1756648246232,-480.0,0.00018048,2]
[382497080,1756648246242,-480.0,0.00018048,2]
[382497082,1756648246252,-480.0,0.00018048,2]
[382497084,1756648246261,-480.0,0.00018048,2]
[382497086,1756648246270,-480.0,0.00018048,2]
[382497088,1756648246279,-486.4,0.00018048,2]
[382497089,1756648246290,-480.0,0.00018048,2]
[382497091,1756648246304,-584.59,0.00018048,2]
[382497093,1756648246314,-508.96,0.00018048,2]
[382497096,1756648246325,-1336.36,0.00018048,2]
[382497098,1756648246337,-771.32,0.00018048,2]
[382497100,1756648246347,-380.01389464,0.00018048,2]
[382497101,1756648246356,-891.55,0.00018048,2]
[382497104,1756648246367,-574.12,0.00018048,2]
[382497106,1756648246377,-590.97,0.00018048,2]
[382497108,1756648246389,-480.0,0.00018048,2]
[382497110,1756648246400,-480.0,0.00018048,2]
[382497112,1756648246412,-660.75,0.00018048,2]
[382497114,1756648246423,-1143.43,0.00018048,2]
[382497115,1756648246432,-296.00705477,0.00018048,2]
[382497118,1756648246443,-1792.88,0.00018048,2]
[382497119,1756648246452,-480.0,0.00018048,2]
[382497122,1756648246462,-480.0,0.00018048,2]
[382497123,1756648246471,-480.0,0.00018048,2]
[382497126,1756648246481,-151.0,0.00018048,2]
[382497127,1756648246491,-501.47,0.00018048,2]
[382497129,1756648246500,-480.0,0.00018048,2]
[382497131,1756648246509,-513.17890549,0.00018048,2]
[382497133,1756648246519,-480.0,0.00018048,2]
[382497135,1756648246528,-607.69,0.00018048,2]
[382497137,1756648246538,-480.0,0.00018048,2]